bitfinex/quotes_ETHUSD_20251118
["timestamp","ask_amount","ask_price","bid_price","bid_amount"]
[1763458747219,0.7482,3045.7,3045.0,0.405504]
[1763458747434,0.7482,3045.7,3045.0,1.55001646]
[1763458747588,0.4612,3045.1,3045.0,0.405504]
[1763458747783,0.7402,3045.1,3044.8,0.405504]
[1763458747986,0.4712,3045.8,3045.1,0.405504]
[1763458748182,0.279,3045.7,3045.1,0.405504]
[1763458748393,0.279,3045.7,3045.4,0.405504]
[1763458748616,0.279,3045.7,3045.4,1.28223699]
[1763458749203,0.08,3045.5,3045.4,1.28223699]
[1763458749403,1.185,3045.6,3045.4,2.18922963]
[1763458749618,1.185,3045.6,3045.5,0.904704]
[1763458749912,1.185,3045.6,3045.5,0.405504]
[1763458750099,1.7342,3045.6,3045.5,0.405504]
[1763458750499,1.6462,3045.6,3045.5,0.405504]
[1763458751101,1.185,3045.6,3045.5,1.37293625]
[1763458751393,0.002,3045.8,3045.6,0.405504]
[1763458751714,1.464,3045.7,3045.6,0.904704]
[1763458752307,1.464,3045.7,3045.6,1.377104]
[1763458752622,1.544,3045.7,3045.6,0.405504]
[1763458753020,1.464,3045.7,3045.6,1.13269689]
[1763458754723,1.464,3045.7,3045.6,2.40429893]
[1763458754903,1.464,3045.7,3045.6,3.81049157]
[1763458755302,0.6658,3045.9,3045.8,0.405504]
[1763458755610,0.6658,3045.9,3045.8,0.904704]
[1763458755792,0.6658,3045.9,3045.8,2.2399858]
[1763458755989,0.7458,3045.9,3045.8,0.83379316]
[1763458756402,1.6257,3045.9,3045.6,0.22799289]
[1763458756733,0.0839,3045.7,3045.6,0.22799289]
[1763458757226,1.0804,3045.9,3045.6,0.22799289]
[1763458757544,1.0804,3045.9,3045.7,0.405504]
[1763458758494,0.9448,3045.9,3045.7,0.405504]
[1763458758920,0.2219,3045.8,3045.7,0.405504]
[1763458759125,1.4069,3045.8,3045.7,0.405504]
[1763458759523,1.185,3045.8,3045.7,0.405504]
[1763458760942,1.2594,3045.8,3045.7,0.405504]
[1763458761234,1.2594,3045.8,3045.0,1.77080204]
[1763458761235,1.7309,3045.8,3045.0,1.77080204]
[1763458761532,1.7309,3045.8,3045.1,1.01326279]
[1763458761533,0.4796,3045.7,3045.1,1.01326279]
[1763458761730,0.4796,3045.7,3045.2,0.405504]
[1763458762110,1.185,3045.8,3045.3,8.36182588]
[1763458762306,1.185,3045.8,3045.4,1.31249664]
[1763458762508,0.4749,3045.7,3045.4,1.31249664]
[1763458762707,1.185,3045.8,3045.4,1.31249664]
[1763458762708,1.6559,3045.8,3045.4,1.31249664]
[1763458763110,1.464,3045.7,3045.4,1.31249664]
[1763458763311,0.075,3045.5,3045.1,1.01326279]
[1763458763502,0.075,3045.5,3045.0,1.77080204]
[1763458763503,0.075,3045.2,3045.0,0.90699264]
[1763458763698,0.4749,3045.6,3045.0,0.90699264]
[1763458763699,1.185,3045.7,3045.0,0.90699264]
[1763458763903,1.185,3045.7,3045.1,0.4864]
[1763458764102,1.185,3045.7,3045.1,0.96016206]
[1763458764331,0.4741,3045.2,3044.9,1.77080204]
[1763458764660,0.4701,3045.0,3044.5,1.77080204]
[1763458765003,0.3916,3044.9,3044.3,10.13262792]
[1763458765234,0.3916,3044.9,3044.4,0.90699264]
[1763458765540,0.279,3044.9,3044.5,0.03284611]
[1763458765834,0.279,3044.9,3044.4,2.24890204]
[1763458765835,0.279,3044.9,3044.6,0.63367881]
[1763458766729,0.279,3044.9,3044.8,0.405504]
[1763458767433,0.3534,3044.9,3044.8,0.405504]
[1763458767630,0.466,3044.9,3044.8,0.405504]
[1763458767834,0.9361,3044.9,3044.8,0.405504]
[1763458768031,0.9361,3044.9,3044.7,0.405504]
[1763458768414,0.0047,3044.8,3044.7,0.405504]
[1763458770736,0.0047,3044.8,3044.6,1.99897685]
[1763458770941,0.5485,3044.7,3044.3,1.77080204]
[1763458771140,0.4701,3044.4,3044.0,1.77180204]
[1763458771438,0.0047,3044.1,3044.0,0.001]
[1763458771639,0.4788,3044.1,3044.0,0.001]
[1763458774249,1.9428,3044.1,3044.0,0.001]
[1763458774565,1.4687,3044.1,3044.0,0.001]
[1763458774710,1.185,3044.1,3044.0,0.001]
[1763458774910,1.464,3044.1,3044.0,0.83728259]
[1763458776116,1.5384,3044.1,3044.0,0.001]
[1763458776322,2.0085,3044.1,3044.0,0.001]
[1763458776515,1.5384,3044.1,3044.0,0.001]
[1763458776946,1.464,3044.1,3044.0,0.001]
[1763458777744,0.1126,3044.9,3044.0,0.4679]
[1763458778047,0.1126,3044.9,3044.1,0.595904]
[1763458778341,1.465,3044.8,3044.3,0.405504]
[1763458778520,1.9391,3044.8,3044.3,1.30127699]
[1763458778720,1.465,3044.8,3044.3,1.30127699]
[1763458779246,1.465,3044.8,3044.4,0.4926]
[1763458780313,1.465,3044.8,3044.7,0.4669]
[1763458781946,1.465,3044.8,3044.7,0.872404]
[1763458782146,1.465,3044.8,3044.7,2.27199664]
[1763458782450,1.465,3044.8,3044.7,3.23597003]
[1763458784745,1.465,3044.8,3044.7,2.74337003]
[1763458784952,1.465,3044.8,3044.7,3.23597003]
[1763458786864,0.002,3045.6,3044.8,0.405504]
[1763458787070,0.002,3045.6,3045.5,10.33162252]
[1763458787363,1.4652,3045.6,3045.5,10.82422252]
[1763458788056,0.0012,3045.6,3045.5,10.82422252]
[1763458788240,1.4652,3045.6,3045.5,10.82422252]
[1763458788580,1.4652,3045.6,3045.5,12.58941219]
[1763458788848,1.4652,3045.6,3045.5,13.35575341]
[1763458789037,1.4652,3045.6,3045.5,2.16593386]
[1763458789245,1.4652,3045.6,3045.5,0.90699264]
[1763458789638,1.5396,3045.6,3045.5,0.90699264]
[1763458792162,1.4652,3045.6,3045.5,0.90699264]
[1763458792462,1.5396,3045.6,3045.5,0.90699264]
[1763458792862,0.0756,3045.6,3045.5,0.90699264]
[1763458793057,1.5396,3045.6,3045.5,0.90699264]
[1763458793662,1.4652,3045.6,3045.5,0.90699264]
[1763458796259,1.5396,3045.6,3045.5,0.90699264]
[1763458797641,0.0012,3045.6,3045.5,1.86649264]
[1763458797997,1.4652,3045.6,3045.5,3.33239976]
[1763458798146,0.002,3045.8,3045.6,1.31249664]
[1763458798344,0.002,3045.8,3045.7,0.872404]
[1763458798564,1.187,3045.8,3045.7,2.23077968]
[1763458798766,1.187,3045.8,3045.7,0.84527828]
[1763458798967,1.187,3045.8,3045.7,0.37837828]
[1763458799276,1.466,3045.8,3045.7,0.84527828]
[1763458800174,1.466,3045.8,3045.7,1.33787828]
[1763458800683,1.466,3045.8,3045.7,1.77621545]
[1763458800841,1.466,3045.8,3045.7,1.74338228]
[1763458803082,1.466,3045.8,3045.7,4.4142546]
[1763458803083,0.002,3045.8,3045.7,4.4142546]
[1763458803272,1.466,3045.8,3045.7,2.65037492]
[1763458803614,1.466,3045.8,3045.7,5.01278618]
[1763458803786,0.6658,3045.9,3045.8,0.405504]
[1763458803948,1.8508,3045.9,3045.8,3.89155954]
[1763458804148,1.185,3045.9,3045.8,2.44633487]
[1763458804878,1.464,3045.9,3045.8,2.44633487]
[1763458806492,0.002,3046.0,3045.9,1.31249664]
[1763458806662,1.466,3046.0,3045.9,11.66973803]
[1763458807063,0.002,3046.0,3045.9,11.66973803]
[1763458807268,1.466,3046.0,3045.9,11.66973803]
[1763458808487,0.002,3046.0,3045.9,11.66973803]
[1763458808686,1.466,3046.0,3045.9,14.02255615]
[1763458809187,1.466,3046.0,3045.9,14.15419983]
[1763458809357,1.466,3046.0,3045.9,11.80138171]
[1763458809784,1.466,3046.0,3045.9,14.15772731]
[1763458810789,1.4652,3046.0,3045.9,14.15772731]
[1763458810985,1.4652,3046.0,3045.9,11.80138171]
[1763458811295,1.4652,3046.0,3045.9,14.02608363]
[1763458811862,1.4652,3046.0,3045.9,13.53158363]
[1763458812993,1.4652,3046.0,3045.9,14.02608363]
[1763458813865,1.4652,3046.0,3045.9,11.66973803]
[1763458814762,1.4652,3046.0,3045.9,1.55599543]
[1763458814763,1.5396,3046.0,3045.9,1.55599543]
[1763458814995,2.0097,3046.0,3045.9,3.9]
[1763458815212,2.0097,3046.0,3045.9,4.80699264]
[1763458815425,2.0097,3046.0,3045.9,1.77086568]
[1763458815633,2.0097,3046.0,3045.8,2.67785832]
[1763458815933,1.4652,3046.0,3045.8,2.67785832]
[1763458816092,0.2088,3045.9,3045.8,1.77086568]
[1763458816433,0.2088,3045.9,3045.8,1.56477847]
[1763458816641,0.6795,3045.9,3045.5,0.90799264]
[1763458817201,0.6795,3045.9,3045.5,3.26774608]
[1763458817421,0.6295,3045.9,3045.5,0.90799264]
[1763458817741,0.1588,3045.9,3045.5,0.90799264]
[1763458818445,0.0012,3046.0,3045.9,0.405504]
[1763458818670,1.4652,3046.0,3045.9,0.405504]
[1763458818870,1.4652,3046.0,3045.9,0.881704]
[1763458819074,1.4652,3046.0,3045.9,1.83159941]
[1763458819380,1.4652,3046.0,3045.9,4.60384549]
[1763458819670,1.5891,3046.0,3045.9,1.36238805]
[1763458819864,2.0102,3046.0,3045.9,0.90699264]
[1763458820228,1.5891,3046.0,3045.9,0.90799264]
[1763458820664,0.0012,3046.0,3045.9,11.02433524]
[1763458820968,1.4652,3046.0,3045.9,11.02433524]
[1763458821168,2.7552,3046.0,3045.9,1.77186555]
[1763458821339,2.7552,3046.0,3045.5,0.001]
[1763458821340,1.00753466,3045.9,3045.5,0.001]
[1763458821659,0.279,3045.8,3045.5,0.001]
[1763458821965,0.279,3045.7,3045.5,0.001]
[1763458822560,0.0012,3046.0,3045.5,0.001]
[1763458822758,0.28,3045.9,3045.5,0.001]
[1763458823360,0.279,3045.8,3045.5,0.001]
[1763458828138,0.0012,3046.0,3045.5,0.001]
[1763458828139,0.279,3045.7,3045.5,0.001]
[1763458829076,1.464,3045.7,3045.5,0.001]
[1763458829279,1.464,3045.6,3045.5,0.001]
[1763458831578,1.464,3045.6,3045.5,0.4859]
[1763458832070,1.464,3045.6,3045.5,0.001]
[1763458834225,1.185,3045.6,3045.5,0.001]
[1763458835515,1.464,3045.6,3045.5,0.001]
[1763458838806,0.002,3045.9,3045.5,0.4655]
[1763458839007,1.464,3045.8,3045.5,0.4655]
[1763458839516,1.464,3045.8,3045.5,0.9476]
[1763458840222,1.464,3045.7,3045.5,0.9476]
[1763458840803,1.464,3045.7,3045.6,0.4645]
[1763458841119,1.464,3045.7,3045.6,0.9466]
[1763458841510,1.464,3045.7,3045.6,0.4645]
[1763458841715,1.464,3045.7,3045.5,0.001]
[1763458844904,0.002,3045.9,3045.5,0.001]
[1763458845106,0.279,3045.6,3045.5,0.001]
[1763458849616,0.002,3045.9,3045.5,0.001]
[1763458850023,1.464,3045.8,3045.5,0.4831]
[1763458851250,1.464,3045.8,3045.5,0.001]
[1763458855959,0.002,3045.9,3045.5,0.001]
[1763458856286,0.279,3045.7,3045.5,0.001]
[1763458856564,0.002,3045.9,3045.5,0.001]
[1763458856869,1.464,3045.8,3045.6,0.4645]
[1763458857428,1.464,3045.8,3045.5,0.001]
[1763458857971,1.185,3045.7,3045.5,0.001]
[1763458858135,1.185,3045.6,3045.5,0.4831]
[1763458858537,1.185,3045.6,3045.5,0.9476]
[1763458859060,1.464,3045.6,3045.5,0.9476]
[1763458861484,0.0012,3045.9,3045.5,0.9476]
[1763458861633,0.0012,3045.9,3045.8,0.4645]
[1763458861837,1.4652,3045.9,3045.8,0.9466]
[1763458862668,1.4652,3045.9,3045.8,1.36748123]
[1763458863988,1.4652,3045.9,3045.8,0.9466]
[1763458864348,1.4652,3045.9,3045.5,3.26321232]
[1763458864551,1.4652,3045.9,3045.6,1.38909264]
[1763458864751,1.4652,3045.9,3045.8,0.4645]
[1763458866762,1.4652,3045.9,3045.8,7.79632059]
[1763458866962,1.4652,3045.9,3045.8,8.71486191]
[1763458867275,1.4652,3045.9,3045.8,9.20346191]
[1763458868565,0.0012,3045.9,3045.8,9.20346191]
[1763458868764,1.1862,3045.9,3045.8,9.20346191]
[1763458868975,1.4652,3045.9,3045.8,9.20346191]
[1763458869359,0.0012,3045.9,3045.8,9.20346191]
[1763458869566,1.4652,3045.9,3045.8,9.20346191]
[1763458870786,0.0004,3046.0,3045.9,1.31249664]
[1763458870991,1.464,3046.0,3045.9,6.61139513]
[1763458871196,1.464,3046.0,3045.9,13.00339207]
[1763458871409,1.464,3046.0,3045.9,11.07379145]
[1763458872137,1.464,3046.0,3045.9,10.17968745]
[1763458872432,1.464,3046.0,3045.7,6.42482795]
[1763458872584,1.464,3046.0,3045.8,0.90699264]
[1763458873828,1.464,3046.0,3045.5,0.001]
[1763458873829,1.464,3046.0,3045.6,0.90699264]
[1763458874627,1.464,3046.0,3045.5,0.001]
[1763458875180,1.464,3046.0,3045.8,0.001]
[1763458875396,1.466,3046.0,3045.8,0.001]
[1763458875718,0.281,3046.0,3045.8,0.001]
[1763458876294,0.405504,3045.9,3045.8,0.001]
[1763458878598,0.279,3045.9,3045.8,0.001]
[1763458879321,3.55599264,3045.9,3045.8,0.001]
[1763458881111,1.18599264,3045.9,3045.8,0.001]
[1763458881388,0.90619264,3045.9,3045.8,0.001]
[1763458881984,1.31169664,3045.9,3045.8,0.001]
[1763458882186,1.79221972,3045.9,3045.8,0.001]
[1763458882721,2.49676614,3045.9,3045.8,0.001]
[1763458882914,2.07121972,3045.9,3045.8,0.001]
[1763458883112,0.88602708,3045.8,3045.5,0.001]
[1763458883313,8.76351301,3045.6,3045.5,0.001]
[1763458883489,10.84621594,3045.6,3045.5,0.001]
[1763458884091,10.15102873,3045.6,3045.5,0.001]
[1763458884594,10.43002873,3045.6,3045.5,0.001]
[1763458885493,10.15102873,3045.6,3045.5,0.001]
[1763458885692,10.43002873,3045.6,3045.5,0.001]
[1763458886373,10.85557515,3045.6,3045.5,0.001]
[1763458886834,10.57657515,3045.6,3045.5,0.001]
[1763458887022,10.43002873,3045.6,3045.5,0.001]
[1763458889174,12.80202873,3045.6,3045.5,0.001]
[1763458890081,4.44401972,3045.6,3045.5,0.001]
[1763458890249,1.90859664,3045.5,3043.3,0.90699264]
[1763458890429,1.90859664,3045.5,3042.7,0.589304]
[1763458890430,2.81466614,3045.5,3042.9,0.90799264]
[1763458890633,0.405504,3045.3,3042.9,0.90799264]
[1763458890865,1.66651572,3045.2,3042.9,0.90799264]
[1763458891074,2.14661572,3045.2,3042.9,0.90799264]
[1763458891227,0.405504,3045.0,3042.9,0.90799264]
[1763458891430,0.405504,3044.7,3043.0,1.52604017]
[1763458891737,0.405504,3044.5,3043.0,0.1904]
[1763458892153,0.4801,3044.4,3043.0,0.1904]
[1763458892351,0.4801,3044.4,3043.1,0.4801]
[1763458893023,0.1126,3044.9,3043.1,0.4801]
[1763458893275,1.31249664,3044.7,3043.1,0.4801]
[1763458893892,0.4801,3044.6,3043.1,0.4801]
[1763458894252,0.4801,3044.6,3043.2,0.90699264]
[1763458894445,0.4801,3044.6,3043.3,1.00880926]
[1763458894646,2.651,3044.5,3043.3,1.00880926]
[1763458894845,2.651,3044.5,3043.4,0.4801]
[1763458896501,2.372,3044.4,3043.4,0.4801]
[1763458896785,0.279,3044.3,3043.4,0.4801]
[1763458896947,1.186,3044.4,3044.3,0.6432]
[1763458897142,0.1126,3044.9,3044.3,0.6432]
[1763458897143,1.186,3044.5,3044.3,0.6432]
[1763458897347,1.465,3044.4,3044.3,0.6432]
[1763458898249,1.465,3044.4,3044.3,1.1258]
[1763458899643,0.5961,3045.5,3044.3,1.1258]
[1763458899849,2.651,3045.4,3044.7,0.4522]
[1763458900477,0.116,3045.5,3044.7,0.9348]
[1763458900681,2.651,3045.4,3044.7,0.9348]
[1763458901375,2.651,3045.4,3044.7,0.4522]
[1763458901682,2.651,3045.4,3044.8,0.4826]
[1763458902183,1.186,3045.4,3045.3,0.4522]
[1763458902482,0.002,3046.0,3045.3,0.4522]
[1763458902691,1.186,3045.4,3044.5,0.90699264]
[1763458902982,0.002,3046.0,3045.8,0.4522]
[1763458903180,1.467,3045.9,3045.8,0.9348]
[1763458903386,2.1282,3045.9,3044.7,0.4826]
[1763458903563,0.476,3045.8,3044.8,0.4826]
[1763458904153,1.86351572,3045.8,3044.3,0.191]
[1763458904483,0.4801,3045.7,3044.6,0.4826]
[1763458904983,1.5822,3045.9,3044.6,0.4826]
[1763458905183,2.651,3045.8,3044.6,0.4826]
[1763458906971,2.651,3045.8,3044.6,1.38959264]
[1763458907185,3.1311,3045.8,3044.6,1.38959264]
[1763458907388,3.1311,3045.8,3044.7,0.4826]
[1763458907685,2.651,3045.7,3044.7,0.4826]
[1763458908386,0.1172,3045.9,3044.7,0.4826]
[1763458908590,2.651,3045.6,3044.7,0.4826]
[1763458908885,2.651,3045.6,3044.6,0.90699264]
[1763458909087,0.4801,3045.5,3044.6,0.90699264]
[1763458909261,0.4801,3045.5,3044.4,0.4826]
[1763458910686,0.4801,3045.5,3044.1,8.35800901]
[1763458910687,0.405504,3045.4,3044.1,0.6736]
[1763458911288,0.405504,3045.2,3044.1,0.6736]
[1763458911586,0.279,3045.1,3044.1,0.6736]
[1763458911789,0.279,3045.1,3044.1,0.191]
[1763458911790,0.7591,3045.1,3044.1,0.191]
[1763458912191,0.4801,3045.0,3044.1,0.191]
[1763458913091,0.1126,3044.9,3044.1,0.191]
[1763458913393,0.1126,3044.9,3044.1,0.6736]
[1763458915261,0.5927,3044.9,3044.1,0.6736]
[1763458917607,0.002,3045.6,3044.1,0.191]
[1763458917784,3.1311,3045.5,3044.2,0.4826]
[1763458918180,0.4801,3045.4,3044.2,0.4826]
[1763458918611,0.405504,3045.3,3044.1,0.191]
[1763458918881,0.405504,3045.3,3044.1,0.6736]
[1763458919103,0.4801,3045.2,3044.1,0.6736]
[1763458920396,0.4801,3045.2,3044.2,0.4826]
[1763458920920,0.4801,3045.2,3044.1,0.191]
[1763458921233,0.4801,3045.2,3044.2,0.4826]
[1763458922222,0.405504,3045.4,3044.2,0.4826]
[1763458922396,3.1311,3045.3,3044.2,0.4826]
[1763458922716,2.651,3045.3,3044.2,0.4826]
[1763458923105,0.4801,3045.5,3044.2,0.4826]
[1763458923106,1.465,3045.2,3044.2,0.4826]
[1763458923307,2.651,3045.2,3044.2,0.4826]
[1763458923490,2.651,3045.2,3045.1,0.4522]
[1763458924106,2.7202,3045.2,3044.6,0.4826]
[1763458924813,2.651,3045.2,3044.6,0.4826]
[1763458925018,2.651,3045.2,3045.1,0.4522]
[1763458925718,0.002,3045.6,3045.1,0.4522]
[1763458925923,1.465,3045.2,3045.1,0.4522]
[1763458926521,1.465,3045.2,3044.4,0.90699264]
[1763458926522,1.5523,3045.2,3044.4,0.90699264]
[1763458926733,1.5523,3045.2,3044.4,0.4756]
[1763458926904,1.5523,3045.2,3044.3,0.90699264]
[1763458927110,1.465,3045.2,3044.4,0.4756]
[1763458927512,1.465,3045.2,3045.1,0.4591]
[1763458927750,1.465,3045.2,3044.4,0.4756]
[1763458927916,1.465,3045.2,3044.4,1.00385926]
[1763458928125,1.465,3045.2,3044.5,0.4756]
[1763458928319,1.186,3045.1,3044.5,0.4756]
[1763458928524,1.186,3045.1,3045.0,0.4591]
[1763458929034,1.6543,3045.1,3044.6,0.4756]
[1763458929241,0.4683,3045.1,3044.6,0.4756]
[1763458929443,1.186,3045.0,3044.3,0.90699264]
[1763458929640,1.465,3045.0,3044.3,0.90699264]
[1763458930016,1.465,3045.0,3044.9,0.4591]
[1763458930308,1.186,3045.2,3044.4,0.4756]
[1763458930512,1.186,3045.2,3045.1,0.4591]
[1763458930745,0.002,3045.6,3045.1,0.4591]
[1763458930951,2.372,3045.2,3045.1,0.4591]
[1763458931552,0.002,3045.6,3045.1,0.9347]
[1763458931726,0.002,3045.6,3045.5,1.36609264]
[1763458931928,1.467,3045.6,3045.5,2.37746372]
[1763458932117,1.467,3045.6,3045.5,2.85306372]
[1763458932645,1.467,3045.6,3045.5,4.62512372]
[1763458933618,1.467,3045.6,3045.5,2.85306372]
[1763458934230,1.467,3045.6,3045.5,4.62279319]
[1763458934647,1.467,3045.6,3045.5,2.85306372]
[1763458935217,1.467,3045.6,3045.5,0.9347]
[1763458935829,1.467,3045.6,3045.5,0.4591]
[1763458936147,1.467,3045.6,3045.5,0.9347]
[1763458936553,1.467,3045.6,3045.5,0.4591]
[1763458937412,1.467,3045.6,3045.5,0.9347]
[1763458938755,1.466,3045.6,3045.5,0.9347]
[1763458938967,1.466,3045.6,3045.5,1.84169264]
[1763458939173,1.466,3045.6,3045.5,2.90062372]
[1763458939773,1.466,3045.6,3045.5,1.99363108]
[1763458939950,1.466,3045.6,3045.5,0.9347]
[1763458941570,0.002,3045.6,3045.5,0.9347]
[1763458941743,1.466,3045.6,3045.5,0.9347]
[1763458942774,1.466,3045.6,3045.5,1.84169264]
[1763458943191,1.466,3045.6,3045.5,2.24719664]
[1763458943477,1.466,3045.6,3045.5,3.52363792]
[1763458943954,0.0012,3045.9,3045.5,3.52363792]
[1763458944282,0.0012,3045.9,3045.5,2.58893792]
[1763458944283,1.185,3045.6,3045.5,2.58893792]
[1763458944877,1.185,3045.6,3045.5,3.06933792]
[1763458945282,1.464,3045.6,3045.5,3.52963792]
[1763458946367,0.0012,3045.9,3045.5,3.52963792]
[1763458946569,0.0012,3045.9,3045.8,3.55772228]
[1763458946755,0.0012,3045.9,3045.8,4.01802228]
[1763458946756,1.1862,3045.9,3045.8,4.01802228]
[1763458947157,1.1862,3045.9,3045.8,3.61251828]
[1763458947471,1.1862,3045.9,3045.8,2.33171703]
[1763458947672,1.4652,3045.9,3045.8,2.33171703]
[1763458949183,1.4652,3045.9,3045.8,0.96442439]
[1763458949386,1.4652,3045.9,3045.8,0.4804]
[1763458949587,1.4652,3045.9,3045.8,0.9407]
[1763458950286,1.4652,3045.9,3045.6,1.22772561]
[1763458950587,1.4652,3045.9,3045.8,0.4804]
[1763458950953,1.4652,3045.9,3045.5,1.36729264]
[1763458951153,1.4652,3045.9,3045.6,0.4603]
[1763458951363,1.4652,3045.9,3045.3,3.13211828]
[1763458951684,1.5812,3045.9,3045.3,1.36729264]
[1763458951853,1.5804,3045.9,3045.3,1.36729264]
[1763458952055,1.5804,3045.9,3045.3,0.4603]
[1763458952255,1.5804,3045.9,3045.3,2.0203556]
[1763458952548,1.4644,3045.9,3045.3,2.0203556]
[1763458952754,1.4644,3045.9,3045.4,0.4603]
[1763458952955,0.0004,3045.9,3045.8,0.4804]
[1763458953278,1.4644,3045.9,3045.8,0.4804]
[1763458953479,1.4644,3045.9,3045.8,0.9407]
[1763458953784,1.4644,3045.9,3045.8,0.4804]
[1763458953996,1.4644,3045.9,3045.8,0.9407]
[1763458954397,1.4644,3045.9,3045.8,0.4804]
[1763458954889,1.4644,3045.9,3045.8,0.9407]
[1763458955603,0.0004,3045.9,3045.8,0.9407]
[1763458955808,1.4644,3045.9,3045.8,0.9407]
[1763458956005,1.4644,3045.9,3045.8,1.30195183]
[1763458956303,1.4644,3045.9,3045.8,0.4804]
[1763458956502,1.4644,3045.9,3045.8,0.9642]
[1763458957692,1.4644,3045.9,3045.8,0.4849]
[1763458957890,1.4644,3045.9,3045.8,0.9687]
[1763458959609,1.4644,3045.9,3045.8,3.64051828]
[1763458959904,1.4644,3045.9,3045.8,4.00457011]
[1763458960402,1.4644,3045.9,3045.8,2.23974447]
[1763458961601,1.4644,3045.9,3045.8,6.14074447]
[1763458964526,1.4644,3045.9,3045.8,5.29289264]
[1763458967511,1.4644,3045.9,3045.8,1.39289264]
[1763458969110,1.4644,3045.9,3045.8,1.87669264]
[1763458969419,2.0592,3045.9,3045.8,0.90799264]
[1763458970142,1.9437,3045.9,3045.8,0.90799264]
[1763458970315,1.4644,3045.9,3045.8,0.90799264]
[1763458970514,1.94,3045.9,3045.8,0.90799264]
[1763458970716,2.056,3045.9,3045.8,2.68421594]
[1763458971041,2.1296,3045.9,3045.8,0.001]
[1763458971814,2.056,3045.9,3045.8,0.001]
[1763458972017,1.94,3045.9,3045.8,0.001]
[1763458973046,1.4644,3045.9,3045.8,0.001]
[1763458973542,1.4644,3045.9,3045.8,0.4859]
[1763458974837,1.4644,3045.9,3045.8,0.9697]
[1763458975345,1.4644,3045.9,3045.8,1.15736926]
[1763458975544,1.185,3045.9,3045.8,1.5794619]
[1763458975747,1.185,3045.9,3045.8,4.42752876]
[1763458976315,1.185,3045.9,3045.8,5.9643619]
[1763458976760,1.464,3045.9,3045.8,6.9519203]
[1763458978146,1.464,3045.9,3045.8,7.3574243]
[1763458978857,1.466,3045.9,3045.8,15.70659147]
[1763458979928,0.002,3045.9,3045.8,15.70659147]
[1763458980152,1.466,3045.9,3045.8,15.70659147]
[1763458980543,0.0016,3046.0,3045.9,5.21249664]
[1763458980743,0.002,3046.3,3046.1,1.088404]
[1763458981053,0.4793,3047.4,3046.3,1.31249664]
[1763458981369,0.4793,3047.4,3046.3,1.39189264]
[1763458981552,0.1356,3047.7,3046.3,10.63036381]
[1763458981882,0.1356,3047.9,3046.6,0.405504]
[1763458982084,0.279,3047.8,3047.7,1.77366753]
[1763458982231,0.279,3047.8,3047.7,0.17736675]
[1763458982437,0.279,3047.8,3047.4,0.90699264]
[1763458982438,0.349,3047.8,3047.2,0.405504]
[1763458982771,0.279,3047.8,3047.7,0.4849]
[1763458983334,0.4793,3050.0,3047.8,0.405504]
[1763458983335,0.1118,3048.9,3047.8,0.405504]
[1763458983533,1.2918,3049.5,3048.8,8.34916717]
[1763458983933,0.279,3049.1,3048.8,8.34916717]
[1763458984166,0.1155,3049.3,3048.9,0.90699264]
[1763458984372,0.279,3049.2,3048.9,0.90699264]
[1763458984590,0.279,3049.2,3048.6,1.71949264]
[1763458984591,0.07,3049.0,3048.6,1.71949264]
[1763458984795,0.7542,3049.2,3048.6,1.71949264]
[1763458984983,0.7542,3049.2,3048.5,1.10499264]
[1763458985185,0.7542,3049.2,3048.5,1.85919264]
[1763458985390,0.7542,3049.2,3048.5,1.10499264]
[1763458987175,0.1155,3049.3,3048.6,0.405504]
[1763458987377,0.279,3049.2,3048.8,8.34916717]
[1763458987576,0.279,3049.2,3048.6,0.4556]
[1763458987828,0.279,3049.2,3048.5,1.10499264]
[1763458988807,0.279,3049.2,3048.5,0.90699264]
[1763458989017,0.0748,3048.6,3048.2,0.1884]
[1763458989188,1.463,3048.5,3048.2,0.8125]
[1763458989718,1.463,3048.5,3048.0,8.53756717]
[1763458989922,1.463,3048.5,3048.0,9.89248389]
[1763458990119,1.463,3048.5,3048.1,0.98684048]
[1763458990348,1.463,3048.5,3048.1,1.44244048]
[1763458990608,1.463,3048.5,3048.1,1.89383312]
[1763458990907,1.463,3048.5,3048.1,0.90699264]
[1763458991778,0.1155,3049.3,3048.1,1.95013592]
[1763458991976,0.4745,3049.1,3048.2,0.4556]
[1763458992209,1.184,3049.0,3048.8,8.34916717]
[1763458992505,0.279,3048.9,3048.8,8.34916717]
[1763458992811,0.8125,3049.4,3048.9,0.4893]
[1763458992978,1.463,3049.3,3048.9,0.4893]
[1763458993183,1.463,3049.2,3049.0,0.4556]
[1763458993601,1.463,3049.2,3049.1,0.6777]
[1763458994010,1.463,3049.2,3049.1,1.1333]
[1763458994511,1.463,3049.2,3049.1,2.32382576]
[1763458994902,1.463,3049.2,3049.1,1.4757965]
[1763458995209,1.463,3049.2,3048.8,8.34916717]
[1763458995210,1.5378,3049.2,3048.8,8.34916717]
[1763458995378,1.5378,3049.2,3048.8,9.33576749]
[1763458995895,1.5398,3049.2,3048.8,9.33576749]
[1763458996215,1.5398,3049.2,3048.5,0.644]
[1763458996216,1.5398,3049.2,3048.6,0.98666846]
[1763458996391,1.5398,3049.2,3048.6,2.11590169]
[1763458996602,1.465,3049.2,3048.6,2.57150169]
[1763458996788,1.465,3049.2,3048.6,0.4556]